Cogmind - Beta 15 @@@ ROGUE MODE // 2025.06.26 @ 22:44:50 Player: freddy fastbear Result: Destroyed by H-71 Marshal with Heavy Mass Driver Performance ------------- Evolutions (5) 2500 Regions Visited (9) 1800 Robots Destroyed (105) 525 Value Destroyed (4301) 4301 Prototype IDs (1) 20 Alien Tech Used (0) 0 Bonus (211) 211 TOTAL SCORE: 9357 Bonus ------- High Alert Combat Kills 11 Entered Garrisons 200 Cogmind --------- Core Integrity 0/1000 Matter 231/300 Energy 26/315 System Corruption 3% Temperature Cool (41) Movement Treading (250) Ox1 Location -5/Factory Parts ------- > --- POWER (1) -------- Neutrino Core > --- PROPULSION (4) --- Armored Medium Treads Armored Medium Treads Armored Medium Treads Armored Medium Treads > --- UTILITY (8) ------ Advanced Heat Sink Advanced Heat Sink Visual Processing Unit Improved Power Shielding Hacking Suite Recalibrator > --- WEAPON (4) ------- Heavy Laser Heavy Plasma Cannon Heavy Phase Cannon Gauss Rifle > --- INVENTORY (5) ---- Fusion Compressor Flexi-carbon Leg Flexi-carbon Leg Peak State ------------ > --- POWER ------------ Neutrino Core > --- PROPULSION ------- Armored Medium Treads Armored Medium Treads Armored Medium Treads Armored Medium Treads > --- UTILITY ---------- Advanced Heat Sink Advanced Heat Sink Visual Processing Unit Improved Power Shielding Hacking Suite Recalibrator > --- WEAPON ----------- Heavy Laser Heavy Plasma Cannon Heavy Phase Cannon Gauss Rifle > --- INVENTORY -------- Fusion Compressor Flexi-carbon Leg Flexi-carbon Leg [Rating: 72] Favorites ----------- Power Enhanced Nuclear Core Engine Ion Engine Power Core Enhanced Nuclear Core Propulsion VSS Leg Treads Armored Medium Treads Leg VSS Leg Wheel Wheel Flight Unit Flight Unit Utility Large Storage Unit Device Weapon Cycler Storage Large Storage Unit Processor Improved Targeting Computer Hackware Hacking Suite Protection Improved Power Shielding Weapon Plasma Cannon Energy Gun Field Laser Energy Cannon Plasma Cannon Ballistic Gun Hypervelocity Gauss Rifle Ballistic Cannon Advanced Assault Cannon Slashing Weapon Chainsword Build | -11 -10 -9 -8 -8 -7 -6 -6 -6 -5 ------- Run | Yrd Mat Mat Mat Gar Fac Fac Low Low Fac Slots Evolved 10 | . . 2 2 . 2 2 . . 2 Power . | . . . . . . . . . . Propulsion 2 | . . 1 . . 1 . . . . Utility 6 | . . 1 1 . 1 1 . . 2 Weapon 2 | . . . 1 . . 1 . . . Parts Attached 114 | 4 2 9 26 16 16 10 2 4 25 Power 14 | . 1 2 2 4 2 . . 1 2 Engine 6 | . 1 2 1 2 . . . . . Core 8 | . . . 1 2 2 . . 1 2 Reactor . | . . . . . . . . . . Propulsion 35 | 2 . 5 6 4 6 3 1 . 8 Treads 4 | . . . . . . . . . 4 Leg 24 | . . 4 6 4 6 3 1 . . Wheel 3 | 2 . . . . . . . . 1 Hover . | . . . . . . . . . . Flight 4 | . . 1 . . . . . . 3 Utility 35 | . 1 2 9 3 6 4 . 1 9 Device 19 | . 1 1 2 3 4 2 . 1 5 Storage 2 | . . . 2 . . . . . . Processor 8 | . . . 3 . 2 2 . . 1 Hackware 3 | . . . 1 . . . . . 2 Protection 3 | . . 1 1 . . . . . 1 Artifact . | . . . . . . . . . . Weapon 30 | 2 . . 9 5 2 3 1 2 6 Energy Gun 8 | 1 . . 1 4 . . . . 2 Energy Cannon 6 | . . . . . 2 1 . 1 2 Ballistic Gun 11 | 1 . . 4 1 . 2 1 1 1 Ballistic Cannon 4 | . . . 4 . . . . . . Launcher . | . . . . . . . . . . Special Weapon . | . . . . . . . . . . Impact Weapon . | . . . . . . . . . . Slashing Weapon 1 | . . . . . . . . . 1 Piercing Weapon . | . . . . . . . . . . Special Melee Weapon . | . . . . . . . . . . Unidentified Prototypes 1 | . . . . . 1 . . . . Parts Lost 79 | . . 12 10 15 4 2 2 22 12 Power 10 | . . 2 2 3 . . . 2 1 Propulsion 29 | . . 6 2 5 3 . 1 8 4 Utility 19 | . . 2 2 2 1 1 . 6 5 Weapon 21 | . . 2 4 5 . 1 1 6 2 Highest Loss Streak 22 | . . 7 6 4 2 1 2 22 11 To Critical Strikes . | . . . . . . . . . . Average Backups 9 | 2 3 2 5 10 13 13 13 7 3 Power 1 | 1 1 . . 1 2 2 2 1 . Propulsion 1 | 1 2 1 1 1 . 2 4 2 . Utility 3 | . . . 1 4 7 6 3 3 1 Weapon 1 | . . . 1 2 1 2 2 . . Tool/Special . | . . . . . . . . . . Unused Backups 13 | . . . . . 7 3 . . 3 Power 4 | . . . . . 4 . . . . Propulsion 3 | . . . . . . . . . 3 Utility 6 | . . . . . 3 3 . . . Weapon . | . . . . . . . . . . Tool/Special . | . . . . . . . . . . Average Slot Usage (%) 85 | . 79 54 84 96 93 97 99 57 43 Engine 2 | . 14 9 7 3 . . . . . Core 4 | . . . . 4 7 6 6 3 3 Treads 1 | . . . . . . . . . 13 Leg 21 | . . 19 25 25 25 26 25 13 . Wheel 1 | . 28 4 . . . . . . . Device 13 | . 8 5 4 4 23 26 20 11 4 Storage 6 | . . . 6 17 7 6 6 4 . Processor 6 | . . . 6 9 5 4 13 10 2 Hackware 2 | . . . 7 4 . . . . 4 Energy Gun 5 | . 14 2 1 18 9 5 . . 2 Energy Cannon 6 | . . . . . 12 13 13 4 3 Ballistic Gun 6 | . 14 9 5 7 . 6 12 6 1 Ballistic Cannon 3 | . . . 16 . . . . . . Peak Build Rating 72 | 4 6 7 38 32 48 59 58 56 72 Average Rating 37 | 2 5 5 30 27 40 54 55 27 38 On Entrance 23 | . 4 6 1 32 26 48 58 56 3 Naked Turns 2 | . . 2 . . . . . . . Heaviest Build 67 | 2 9 12 63 41 56 67 58 58 46 Greatest Support 108 | 26 26 30 60 52 54 64 64 51 108 Greatest Overweight (x) 6 | . . 2 2 1 2 1 1 6 3 Average Overweight (x) . | . . . . . . . . . . Largest Inventory Capacity 15 | 5 5 5 15 15 15 15 15 15 5 Average Capacity 12 | 5 5 5 11 15 15 15 15 11 5 Most Carried 15 | 5 4 4 10 14 15 15 14 12 5 Average Carried 9 | 3 3 2 5 10 13 13 13 7 3 Final Capacity 15 | 5 5 5 15 15 15 15 15 5 5 Final Carried 14 | 4 4 2 9 9 14 14 12 4 3 Class Distribution -------------------- 52% | Gunner 24% | Mutant 6% | Scavenger-Gunner 5% | Tank 5% | Skirmisher 3% | Scavenger-Skirmisher Dominant Class ---------------- Mutant | -10/Materials Mutant | -9/Materials Gunner | -8/Materials Scavenger-Gunner | -8/Garrison Gunner | -7/Factory Gunner | -6/Factory Gunner | -6/Lower Caves Mutant | -6/Lower Caves Mutant | -5/Factory Resources | -11 -10 -9 -8 -8 -7 -6 -6 -6 -5 ----------- Run | Yrd Mat Mat Mat Gar Fac Fac Low Low Fac Matter Collected 2914 | 163 122 107 1005 525 30 254 407 . 301 Remotely . | . . . . . . . . . . Salvage Created 4378 | . 163 181 775 832 178 314 922 450 563 Parts 202 | . 9 11 50 30 7 18 31 24 22 Haulers Intercepted 1 | . . . 1 . . . . . . Recyclers Shooed 1 | . . . . . . . . . 1 Parts Field Recycled . | . . . . . . . . . . Retrieved Matter . | . . . . . . . . . . Parts Self-Destructed 52 | . . . . . . . 28 24 . Prevented . | . . . . . . . . . . Kills | -11 -10 -9 -8 -8 -7 -6 -6 -6 -5 ------- Run | Yrd Mat Mat Mat Gar Fac Fac Low Low Fac Combat Hostiles Destroyed 87 | . 6 5 19 21 3 5 14 6 8 Melee 2 | . . 1 . . . . . . 1 Guns 52 | . 6 4 6 20 1 1 9 3 2 Cannons 31 | . . . 13 . 2 3 5 3 5 AOE 1 | . . . . . . 1 . . . Classes Destroyed 15 | . 2 1 6 . 1 2 1 1 1 Worker 2 | . . . . . . 1 . . 1 Builder 8 | . . . 6 . . 1 . . 1 Hauler 1 | . . . 1 . . . . . . Recycler 1 | . . . 1 . . . . . . Mechanic 1 | . . . . . . . . 1 . Watcher 5 | . . . 2 . 1 . . . 2 Swarmer 12 | . 3 1 2 4 . . 1 1 . Grunt 49 | . 3 3 14 16 1 2 4 1 5 Brawler 4 | . . 1 . 1 . . 2 . . Duelist 4 | . . . . . . . 1 3 . Sentry 5 | . . . 1 . 1 . 1 1 1 Specialist 3 | . . . 2 . . . . . 1 Hunter 1 | . . . . . . . . . 1 Programmer 4 | . . . . . 1 2 1 . . Behemoth 1 | . . . . . . 1 . . . Thug 4 | . . . . . . . 4 . . Best Kill Streak 8 | . 3 1 5 5 1 3 8 6 4 Combat Bots Only 8 | . 3 1 4 5 1 2 8 6 4 Max Kills in Single Turn 3 | . 1 1 3 2 1 1 2 1 1 Gunslinging 1 | . . . . 1 . . . . . Exploded 1 | . . . . . . 1 . . . Melee 1 | . . 1 . . . . . . 1 Uniques/NPCs Destroyed . | . . . . . . . . . . Combat | -11 -10 -9 -8 -8 -7 -6 -6 -6 -5 -------- Run | Yrd Mat Mat Mat Gar Fac Fac Low Low Fac Hostile Shots Fired 1014 | . 39 125 204 123 50 36 47 128 262 Missed 286 | . 4 37 67 21 15 17 13 29 83 Hits 728 | . 35 88 137 102 35 19 34 99 179 Melee 16 | . . 4 . . . . 2 10 . Projectile 712 | . 35 84 137 102 35 19 32 89 179 Critical Strikes 37 | . . 4 6 7 1 1 3 5 10 Part Disruptions 5 | . . . . . . . . . 5 Damage Taken 11482 | . 321 897 1982 1537 401 408 719 2010 3207 Core 2790 | . 135 319 205 319 47 84 19 601 1061 Absorbed by Shields . | . . . . . . . . . . Redirected to Shielding 59 | . . . . . . . . . 59 Regen/Repaired (Parts) 102 | . . . 102 . . . . . . Core Remaining (%) 46 | 100 46 20 . 4 93 . . 17 . Volleys Fired 314 | . 26 67 67 46 17 16 26 19 30 Largest 4 | . 2 2 3 3 3 4 4 4 4 Hottest 286 | . 60 60 120 191 223 286 226 226 283 Shots Fired 688 | . 46 78 142 104 51 62 93 44 68 Gun 433 | . 46 78 35 104 29 30 51 28 32 Cannon 255 | . . . 107 . 22 32 42 16 36 Launcher . | . . . . . . . . . . Special . | . . . . . . . . . . Kinetic 363 | . 26 67 138 29 . 18 51 28 6 Thermal 325 | . 20 11 4 75 51 44 42 16 62 Explosive . | . . . . . . . . . . Electromagnetic . | . . . . . . . . . . Robot Hit Streak 21 | . 6 6 9 14 7 6 12 21 16 Robot Miss Streak 8 | . 3 4 6 4 2 8 3 1 4 Penetration Max 1 | . . . . . . . 1 1 . Secondary Targets 10 | . 1 1 1 7 . . . . . Max Gunslinging Chain 1 | . 1 1 1 1 . . . . . Shots Hit Robots 418 | . 26 46 77 74 20 31 59 30 55 Core Hits 210 | . 11 19 42 43 8 14 28 18 27 Critical Kills 12 | . . . . 1 . 1 7 3 . Critical Parts Destroyed 10 | . . 1 . . . . 6 3 . Critical Strikes 46 | . . 1 7 12 1 1 14 6 4 Burn 15 | . . . . 11 1 . . . 3 Destroy 23 | . . 1 . 1 . 1 14 6 . Blast 7 | . . . 7 . . . . . . Sever 1 | . . . . . . . . . 1 Melee Attacks 19 | . . . . . . . . . 19 Impact . | . . . . . . . . . . Slashing 19 | . . . . . . . . . 19 Piercing . | . . . . . . . . . . Sneak Attacks . | . . . . . . . . . . Combat Hostiles . | . . . . . . . . . . Follow-up Attacks . | . . . . . . . . . . Damage Inflicted 8773 | . 237 426 2284 1208 438 875 1059 487 1759 Guns 3397 | . 237 408 281 1208 227 153 281 153 449 Cannons 4459 | . . . 1697 . 211 510 778 334 929 Explosions 445 | . . . 233 . . 212 . . . Melee 355 | . . . . . . . . . 355 Ramming 117 | . . 18 73 . . . . . 26 Kinetic 3112 | . 113 306 1932 236 . 32 281 153 59 Thermal 4977 | . 124 102 279 972 438 631 778 334 1319 Explosive 212 | . . . . . . 212 . . . Electromagnetic . | . . . . . . . . . . Impact . | . . . . . . . . . . Slashing 355 | . . . . . . . . . 355 Piercing . | . . . . . . . . . . Highest Corruption 9 | . . 9 . . 1 2 2 8 3 Average Corruption 2 | . . 6 . . 1 1 2 3 1 Corruption Purged . | . . . . . . . . . . Corruption Blocked . | . . . . . . . . . . Effects 26 | . . 7 . . 1 1 13 2 2 Message Errors 6 | . . 2 . . 1 1 2 . . Matter Fused 8 | . . 2 . . . . 5 . 1 Heat Flow Errors 1 | . . 1 . . . . . . . Energy Discharges 3 | . . . . . . . 2 1 . Parts Fused 1 | . . 1 . . . . . . . Data Loss (minor) 4 | . . 1 . . . . 1 1 1 Data Loss (major) 1 | . . . . . . . 1 . . Misfires 2 | . . . . . . . 2 . . Overload Shots . | . . . . . . . . . . Overflow Damage 141 | . . . 95 . . 8 . . 38 Projectiles 39 | . . . 1 . . . . . 38 Explosions 102 | . . . 94 . . 8 . . . Melee . | . . . . . . . . . . Knockbacks 17 | . . . 17 . . . . . . Impact . | . . . . . . . . . . Kinetic 14 | . . . 14 . . . . . . Secondary 3 | . . . 3 . . . . . . Self-Inflicted Damage 100 | . . 1 98 . . . . . 1 Shots 1 | . . . 1 . . . . . . Rammed 15 | . . 2 . . . . . . 13 Targets Rammed 40 | . . 15 9 . . . . . 16 Kicked 22 | . . 13 9 . . . . . . Crushed 3 | . . . . . . . . . 3 Highest Temperature 599 | . 88 193 599 517 281 480 471 271 146 Average Temperature 162 | . 31 35 240 197 109 162 193 110 47 Received Heat Transfer 4104 | . 60 198 900 954 186 54 261 753 738 Effects 49 | . . . 16 19 1 7 4 2 . Shutdowns 7 | . . . 2 2 . 1 2 . . Energy Bleed 5 | . . . 1 1 1 1 1 . . Interference 13 | . . . 3 4 . 4 . 2 . Matter Decay 6 | . . . 4 2 . . . . . Short Circuit 2 | . . . 1 . . 1 . . . Damage (minor) 6 | . . . 5 . . . 1 . . Damage (major) 10 | . . . . 10 . . . . . Siege Activations . | . . . . . . . . . . Martial Activations . | . . . . . . . . . . Shielding Activations . | . . . . . . . . . . Robots Disrupted . | . . . . . . . . . . Combat Hostiles . | . . . . . . . . . . Robots Corrupted . | . . . . . . . . . . Combat Hostiles . | . . . . . . . . . . Parts Fried . | . . . . . . . . . . Impact Corruptions . | . . . . . . . . . . Robots Melted 1 | . . . . 1 . . . . . Combat Hostiles 1 | . . . . 1 . . . . . Parts Melted 26 | . 1 . . 9 4 1 5 . 6 Heat Transferred 10334 | . 275 225 261 3034 955 1209 1500 650 2225 Parts Sabotaged . | . . . . . . . . . . Parts Stolen . | . . . . . . . . . . Parts Stripped . | . . . . . . . . . . Power Chain Reactions . | . . . . . . . . . . Alert | -11 -10 -9 -8 -8 -7 -6 -6 -6 -5 ------- Run | Yrd Mat Mat Mat Gar Fac Fac Low Low Fac Maximum Alert Level 2 | . . . 1 2 1 1 . . . Low Security (%) 69 | 100 100 100 66 12 91 51 . . 100 Level 1 29 | . . . 33 81 8 48 . . . Level 2 . | . . . . 5 . . . . . Level 3 . | . . . . . . . . . . Level 4 . | . . . . . . . . . . Level 5 . | . . . . . . . . . . High Security . | . . . . . . . . . . Max Security . | . . . . . . . . . . Peak Influence 415 | . 80 45 261 415 217 281 . . 177 Initial 217 | . . 29 8 135 217 . . . 2 Average 124 | . 20 11 127 315 71 135 . . 74 Influence Increases 2732 | . 147 182 667 430 122 435 240 140 369 Destroy 0b10 Robot/C 1660 | . 120 100 380 420 60 100 200 120 160 Destroy 0b10 Robot/NC 90 | . . . 50 . 5 10 . 5 20 Destroy Leader 222 | . 10 10 86 10 22 30 10 . 44 Successful Hack 67 | . 17 12 12 . 5 14 . . 7 Disable Machine 360 | . . . 45 . 15 270 . . 30 Destroy Structure 93 | . . . 64 . . 11 . . 18 Lose Combat Pursuer 240 | . . 60 30 . 15 . 30 15 90 Influence Decreases 2563 | . 77 232 478 224 537 206 469 135 205 Entered New Map 413 | . . 41 12 74 198 . 85 . 3 Time Decay 1626 | . 77 132 366 . 299 196 364 30 162 Lost Part 524 | . . 59 100 150 40 10 20 105 40 Squads Dispatched 24 | . . 1 10 . 2 6 . 1 4 Investigation 4 | . . 1 3 . . . . . . Extermination 4 | . . . . . 1 2 . . 1 Reinforcement 15 | . . . 7 . 1 4 . . 3 Assault 1 | . . . . . . . . 1 . Garrison . | . . . . . . . . . . Intercept . | . . . . . . . . . . Searches Triggered . | . . . . . . . . . . Construction Impeded 3 | . . . 2 . . 1 . . . Haulers Reinforced . | . . . . . . . . . . Active Scanning Responses . | . . . . . . . . . . Cargo Convoy Interrupts . | . . . . . . . . . . Stealth | -11 -10 -9 -8 -8 -7 -6 -6 -6 -5 --------- Run | Yrd Mat Mat Mat Gar Fac Fac Low Low Fac Distress Signals 11 | . 1 2 7 . . . . . 1 Communications Jammed . | . . . . . . . . . . Distress Signals . | . . . . . . . . . . Times Spotted 162 | . 12 23 34 20 7 8 15 14 29 Peak Tracking Total 9 | . 5 9 6 8 3 2 9 9 8 Tactical Retreats 11 | . 1 4 1 . 1 . 1 1 2 Traps | -11 -10 -9 -8 -8 -7 -6 -6 -6 -5 ------- Run | Yrd Mat Mat Mat Gar Fac Fac Low Low Fac Traps Triggered 7 | . . . 1 5 . . . . 1 Indirectly . | . . . . . . . . . . Trap Hack Attempts . | . . . . . . . . . . Triggered . | . . . . . . . . . . Disarmed . | . . . . . . . . . . Reprogrammed . | . . . . . . . . . . Reused . | . . . . . . . . . . Traps Extracted . | . . . . . . . . . . Installed . | . . . . . . . . . . Triggered . | . . . . . . . . . . Machines | -11 -10 -9 -8 -8 -7 -6 -6 -6 -5 ---------- Run | Yrd Mat Mat Mat Gar Fac Fac Low Low Fac Machines Disabled 24 | . . . 3 . 1 18 . . 2 Max in Single Turn 7 | . . . 2 . 1 7 . . 1 Garrison Access 1 | . . . . . . . . . 1 Garrison Relay 1 | . . . . 1 . . . . . Machines Repaired . | . . . . . . . . . . Machines Dismantled . | . . . . . . . . . . Machines Sabotaged . | . . . . . . . . . . Overloaded Fab Kills . | . . . . . . . . . . Hacking | -11 -10 -9 -8 -8 -7 -6 -6 -6 -5 --------- Run | Yrd Mat Mat Mat Gar Fac Fac Low Low Fac Machines Accessed 28 | . 3 4 6 . 4 7 . . 4 Terminals 19 | . 3 3 4 . 3 4 . . 2 Fabricators 2 | . . . . . 1 1 . . . Repair Stations 1 | . . . 1 . . . . . . Recycling Units 3 | . . 1 . . . 1 . . 1 Scanalyzers . | . . . . . . . . . . Garrison Access 3 | . . . 1 . . 1 . . 1 Total Hacks 77 | . 11 16 18 . 5 14 . . 13 Successful 40 | . 5 8 12 . 2 5 . . 8 Failed 37 | . 6 8 6 . 3 9 . . 5 Catastrophic 4 | . . . 1 . 1 2 . . . Database Lockouts . | . . . . . . . . . . Manual . | . . . . . . . . . . Terminals 59 | . 11 14 12 . 4 10 . . 8 Fabricators 2 | . . . . . 1 1 . . . Repair Stations 4 | . . . 4 . . . . . . Recycling Units 7 | . . 2 . . . 2 . . 3 Scanalyzers . | . . . . . . . . . . Garrison Access 5 | . . . 2 . . 1 . . 2 Terminal Hacks 29 | . 5 7 8 . 1 3 . . 5 Record 4 | . . . 2 . . 1 . . 1 Part Schematic 1 | . . . . . . . . . 1 Robot Analysis 2 | . 1 1 . . . . . . . Open DSF 2 | . . . . . 1 1 . . . Branch Access Points 3 | . . 1 1 . . . . . 1 Emergency Access Points 3 | . . 1 2 . . . . . . Terminal Index 1 | . 1 . . . . . . . . Alert Level 3 | . . 1 1 . . . . . 1 Locate Traps 2 | . 1 1 . . . . . . . Transport Status 1 | . . 1 . . . . . . . Recall Investigation 1 | . . . 1 . . . . . . Hauler Manifests 1 | . 1 . . . . . . . . Registered Components 1 | . 1 . . . . . . . . Zone Layout 4 | . . 1 1 . . 1 . . 1 Fabricator Hacks 2 | . . . . . 1 1 . . . Network Status 2 | . . . . . 1 1 . . . Repair Station Hacks 2 | . . . 2 . . . . . . Scan Component 1 | . . . 1 . . . . . . Repair 1 | . . . 1 . . . . . . Recycling Unit Hacks 4 | . . 1 . . . 1 . . 2 Report Inventory 3 | . . 1 . . . 1 . . 1 Retrieve Components 1 | . . . . . . . . . 1 Scanalyzer . | . . . . . . . . . . Garrison Access Hacks 3 | . . . 2 . . . . . 1 Unlock Access 1 | . . . 1 . . . . . . Seal Access 1 | . . . . . . . . . 1 Coupler Status 1 | . . . 1 . . . . . . Unauthorized Hacks . | . . . . . . . . . . Terminals . | . . . . . . . . . . Fabricators . | . . . . . . . . . . Repair Stations . | . . . . . . . . . . Recycling Units . | . . . . . . . . . . Scanalyzers . | . . . . . . . . . . Garrison Access . | . . . . . . . . . . Data Cores Recovered . | . . . . . . . . . . Used . | . . . . . . . . . . Hacking Detections 19 | . 2 3 4 . 3 5 . . 2 Full Trace Events 3 | . . 1 2 . . . . . . Feedback Events . | . . . . . . . . . . Feedback Blocked . | . . . . . . . . . . Robot Schematics Acquired . | . . . . . . . . . . Robots Built . | . . . . . . . . . . Authchips . | . . . . . . . . . . Time . | . . . . . . . . . . Total Robot Build Rating . | . . . . . . . . . . Part Schematics Acquired 1 | . . . . . . . . . 1 Parts Built . | . . . . . . . . . . Authchips . | . . . . . . . . . . Time . | . . . . . . . . . . Total Part Build Rating . | . . . . . . . . . . Parts Repaired 1 | . . . 1 . . . . . . Time 61 | . . . 61 . . . . . . Parts Recycled . | . . . . . . . . . . Recycled Matter . | . . . . . . . . . . Retrieved Matter . | . . . . . . . . . . Retrieved Components 10 | . . . . . . . . . 10 Parts Scanalyzed . | . . . . . . . . . . Part Schematics Acquired . | . . . . . . . . . . Parts Damaged . | . . . . . . . . . . Bothacking | -11 -10 -9 -8 -8 -7 -6 -6 -6 -5 ------------ Run | Yrd Mat Mat Mat Gar Fac Fac Low Low Fac Used RIF Installer . | . . . . . . . . . . Robots Hacked . | . . . . . . . . . . Non-combat . | . . . . . . . . . . Combat . | . . . . . . . . . . Robot Hacks Applied . | . . . . . . . . . . Relay Couplers Released 5 | . . . . 5 . . . . . Machine Destruction 5 | . . . . 5 . . . . . Fabnet Peak Effective % . | . . . . . . . . . . Robots Rewired . | . . . . . . . . . . Allies Hacked . | . . . . . . . . . . Hacks Repelled . | . . . . . . . . . . Allies | -11 -10 -9 -8 -8 -7 -6 -6 -6 -5 -------- Run | Yrd Mat Mat Mat Gar Fac Fac Low Low Fac Total Allies . | . . . . . . . . . . Largest Group . | . . . . . . . . . . Highest-Rated Group . | . . . . . . . . . . Highest-Rated Ally . | . . . . . . . . . . Total Orders . | . . . . . . . . . . Ally Attacks . | . . . . . . . . . . Total Damage . | . . . . . . . . . . Kills . | . . . . . . . . . . Allies Corrupted . | . . . . . . . . . . Allies Melted . | . . . . . . . . . . Intel | -11 -10 -9 -8 -8 -7 -6 -6 -6 -5 ------- Run | Yrd Mat Mat Mat Gar Fac Fac Low Low Fac Active Infowar (turns) 3327 | . 133 57 160 . 893 805 1026 71 182 Optics 297 | . . . 145 . . . . . 152 Sensors 2795 | . . . . . 893 805 1026 71 . Cloaking 30 | . . . . . . . . . 30 Jamming 52 | . . . . . . 52 . . . ECM 205 | . 133 57 15 . . . . . . Robot Analysis Total 2 | . 1 1 . . . . . . . Derelict Logs Recovered 1 | . . . . . . . 1 . . Drone Launches . | . . . . . . . . . . Drone Recoveries . | . . . . . . . . . . Exploration | -11 -10 -9 -8 -8 -7 -6 -6 -6 -5 ------------- Run | Yrd Mat Mat Mat Gar Fac Fac Low Low Fac Turns Passed 5834 | 43 207 355 1051 694 945 815 1026 116 582 Spaces Moved 3462 | 47 141 192 570 351 489 433 752 85 402 Core 334 | 27 . 12 1 . . . . 76 218 Treads 121 | . . . . . . . . . 121 Legs 2676 | . . 99 543 351 489 433 752 9 . Wheels 202 | 20 141 35 . . . . . . 6 Hover . | . . . . . . . . . . Flight 129 | . . 46 26 . . . . . 57 Fastest Speed 37 | 50 90 40 40 113 97 97 112 50 37 Average Speed 129 | 67 90 95 127 141 171 169 122 65 88 Slowest Speed 350 | 90 90 210 270 190 260 182 180 350 200 Overloaded Moves . | . . . . . . . . . . Propulsion Burnouts . | . . . . . . . . . . Robots Hopped 1 | . . 1 . . . . . . . Potential Cave-ins . | . . . . . . . . . . Cave-ins Triggered . | . . . . . . . . . . Exploration Rate (%) 30 | 4 34 26 62 40 14 15 88 13 12 Regions Visited 9 Branch Regions 2 Pre-discovered Areas 1 | . . . . . . . 1 . . Known Exits Taken 1 | . . . 1 . . . . . . Unknown Exits Taken 7 | 1 1 1 . . 1 1 1 1 . Scrap Searched 4 | . . . . . . . 4 . . Spaces Dug . | . . . . . . . . . . Terrain Destroyed 125 | . . . 94 . . 21 1 . 9 Melee . | . . . . . . . . . . Projectile 40 | . . . 31 . . . . . 9 AOE 84 | . . . 63 . . 21 . . . Terrain Rammed . | . . . . . . . . . . Walls Destroyed . | . . . . . . . . . . Machines Disabled . | . . . . . . . . . . Actions | -11 -10 -9 -8 -8 -7 -6 -6 -6 -5 --------- Run | Yrd Mat Mat Mat Gar Fac Fac Low Low Fac Total 4282 | 58 180 295 778 465 560 495 804 115 532 Wait 122 | . 10 5 55 10 6 8 18 2 8 Move 3449 | 46 140 189 569 348 488 432 751 84 402 Hop 1 | . . 1 . . . . . . . Pick Up 136 | 8 2 5 37 18 22 16 1 1 26 Fast Attach . | . . . . . . . . . . Attach 109 | 4 2 9 26 15 8 6 3 9 27 Detach 5 | . . 2 2 . . . . . 1 Swap 32 | . . 2 6 3 9 5 5 . 2 Drop 32 | . . . 7 2 10 12 . . 1 Fire 314 | . 26 67 67 46 17 16 26 19 30 Melee 19 | . . . . . . . . . 19 Ram 4 | . . 2 . . . . . . 2 Kick 22 | . . 13 9 . . . . . . Crush 14 | . . . . . . . . . 14 Escape Stasis 23 | . . . . 23 . . . . . Rewire . | . . . . . . . . . . Trap . | . . . . . . . . . . Miscellaneous . | . . . . . . . . . . Route ------- -11/Scrapyard -10/Materials (discovered 2 exits: *Mat / [*Min]) -9/Materials (discovered 3 exits: *Mat / *Min x2) -8/Materials (discovered 2 exits: *Sto / Gar) -8/Garrison (discovered 2 exits: *Fac x2) -7/Factory -6/Factory (discovered 2 exits: [*Low x2]) -6/Lower Caves -6/Lower Caves -5/Factory (discovered 2 exits: Upp x2) History --------- Turn | Location | Event 16 | -11/Scrapyard | Discovered new exit (range 14) 44 | -11/Scrapyard | Entered Materials 45 | -10/Materials | Met a group of wandering Federalists 213 | -10/Materials | Core integrity fell below 50% 216 | -10/Materials | Discovered new exit (range 16) 236 | -10/Materials | Discovered new exit (range 13) 251 | -10/Materials | Entered another Materials area 251 | -9/Materials | Evolved 2 slots: Propulsion x1, Utility x1 310 | -9/Materials | Build established: Mutant 350 | -9/Materials | Lost 4 parts (2n1u1w) 469 | -9/Materials | Identified exit to Mines 576 | -9/Materials | Core integrity fell below 50% 605 | -9/Materials | Discovered new exit (range 3) 606 | -9/Materials | Entered another Materials area 606 | -8/Materials | Evolved 2 slots: Utility x1, Weapon x1 625 | -8/Materials | Lost 7 parts (1p4n1u1w) 1117 | -8/Materials | Lost 3 parts (1p1n1w) 1148 | -8/Materials | Met 7R-MNS 1224 | -8/Materials | Identified exit to Storage 1427 | -8/Materials | Build established: Gunner 1482 | -8/Materials | Repaired Broken Imp. Titanium Leg 1546 | -8/Materials | Lost 6 parts (1p1n1u3w) 1656 | -8/Materials | Identified exit to Garrison 1657 | -8/Materials | Entered Garrison 1715 | -8/Garrison | Triggered checkpoint 1806 | -8/Garrison | Lost 3 parts (1p1n1w) 1817 | -8/Garrison | Triggered checkpoint 1875 | -8/Garrison | Discovered new exit (range 11) 1901 | -8/Garrison | Triggered checkpoint 1910 | -8/Garrison | Core integrity fell below 50% 1952 | -8/Garrison | Attempted to access garrison exit controls, blocked by remote lockdown 1999 | -8/Garrison | Triggered checkpoint 2035 | -8/Garrison | Triggered checkpoint 2074 | -8/Garrison | Lost 3 parts (1p1n1w) 2149 | -8/Garrison | Triggered checkpoint 2153 | -8/Garrison | Garrison Relay disabled 2166 | -8/Garrison | Core integrity fell below 20% 2194 | -8/Garrison | Lost 4 parts (2n1u1w) 2289 | -8/Garrison | Triggered checkpoint 2321 | -8/Garrison | Discovered new exit (range 15) 2331 | -8/Garrison | Lost 3 parts (1p1u1w) 2351 | -8/Garrison | Entered Factory 2351 | -7/Factory | Evolved 2 slots: Propulsion x1, Utility x1 2390 | -7/Factory | Build established: Scavenger-Gunner 2887 | -7/Factory | Build established: Gunner 3269 | -7/Factory | Discovered new exit (range 16) 3296 | -7/Factory | Entered another Factory area 3296 | -6/Factory | Evolved 2 slots: Utility x1, Weapon x1 3422 | -6/Factory | Discovered new exit (range 12) 3591 | -6/Factory | Spotted B-75 Beast 3619 | -6/Factory | Destroyed B-75 Beast 4093 | -6/Factory | Discovered new exit (range 16) 4111 | -6/Factory | Entered Lower Caves 4116 | -6/Lower Caves | Attracted the attention of an 0b10 outpost 4184 | -6/Lower Caves | Destroyed 8 combat bots 4893 | -6/Lower Caves | Ambushed by wild Derelicts 5119 | -6/Lower Caves | Discovered new exit (range 10) 5137 | -6/Lower Caves | Entered another Lower Caves area 5143 | -6/Lower Caves | Attracted the attention of an 0b10 outpost 5208 | -6/Lower Caves | Core integrity fell below 50% 5237 | -6/Lower Caves | Discovered new exit (range 8) 5247 | -6/Lower Caves | Lost 22 parts (2p8n6u6w) 5253 | -6/Lower Caves | Core integrity fell below 20% 5253 | -6/Lower Caves | Entered Factory 5253 | -5/Factory | Evolved 2 slots: Utility x2 5420 | -5/Factory | Core integrity fell below 50% 5442 | -5/Factory | Build established: Mutant 5461 | -5/Factory | Core integrity fell below 20% 5486 | -5/Factory | Lost 11 parts (1p4n5u1w) 5779 | -5/Factory | Identified exit to Upper Caves 5835 | -5/Factory | Destroyed by H-71 Marshal with Heavy Mass Driver Last Messages --------------- Assembly Bed disabled. ALERT: Hostiles spotted, dispatching reinforcements to Terminal F007. K-01 Serf collects debris. System corrupted: Matter fused (-9). K-01 Serf collects debris. Penetrated by Slug. Manufacturing Mainframe disabled. Slug penetrates Door. Plasma Rifle destroyed. Penetrated by Slug. Connecting with Terminal... System corrupted: Component data lost. Destroyed Imp. Arc Projector. Slug penetrates X-72 Disruptor. Manufacturing Mainframe disabled. X-72 Disruptor destroyed. Terminal disabled. Penetrated by Slug. Slug penetrates Terminal. Map ----- +----------------------------------------------------+ | ?????????????????????????????????????????????????? | | ?????????????????????????????????????????????????? | | ?????????????????????????????????????????????????? | | ?????????????????????????????????????????????????? | | ?????????????????????????????????????????????????? | | ?????????????????????????????????????????????????? | | ?????????????????????????????????????????????????? | | ?????????????????????????????????????????????????? | | ?????????????????????????????????????????????????? | | ?????????????????????????????????????????????????? | | ?????????????????????????????????????????????????? | | ?????????????????????????????????????????????????? | | ?????????????????????????????????????????????????? | | ?????????????????????????????????????????????????? | | ?????????????????????????????????????????????????? | | ?????????????????????????????????????????????????? | | ?????????????????############????????????????????? | | ??????????????#?? #????????????????????? | | ??????????????? """" """" #????????????????????? | | ??????????????#| """" """" #????????????????????? | | ??????????????# """ """" #????????????????????? | | ??????????????# """" """" #????????????????????? | | ??????????????#! #????????????????????? | | ??????????????# """" =x %#????????????????????? | | ########??????# """" !%! #????????????????????? | | #??????#| """" | @ #????????????????????? | | """ #??????# "" "HHh"T" #????????????????????? | | """"" #??????# """ #????????????????????? | | """"" #??????#####+#+######## ?????????????? | | #??######### " ????????????>?? | | ########### ####????????????????????? | | #???????????????????????? | | ""#?????????????????????? | | """" """" """ ""#?????????????????????? | | """" """" """ G#?????????????????????? | | """" """" """ ""#?????????????????????? | | ##### """" """" ""#?????????????????????? | | ????# T """" """" ###?????????????????????? | | #####! " """ """" #???????????????????????? | | # #???????????????????????? | | # #???????????????????????? | | ## #???????????????????????? | | ## #???????????????????????? | | ## ##############+####???????????????????????? | | ## #????# ?????????????????????????? | | ## ##???# ???????????????????????? | | ## ##???# ? ? ??????????????????????? | | ## ##???# "??????????????????????????? | | ## ##???# "??????????????????????????? | | ## ##???# ??????????????????????????? | +----------------------------------------------------+ Best States ------------- Heat Dissipation 78 Energy Generation 25 Energy Capacity 315 Matter Stores 450 Matter Capacity 450 Sight Range 18 Robot Scan Range 15 Terrain Scan Density 10 ECM Strength 1 Jamming Range 12 Cloak Strength 2 Armor Coverage 600 Resistance: EX 25 Power Shielding 66 Weapon Cycling 30 Evasion (%) 62 Targeting Accuracy 12 Target Analysis 5 Recoil Reduction 4 Kinecelleration 30 Offensive Hacking 10 Defensive Hacking 10 Item Schematics ----------------- Hvy. Linear Accelerator | -5/Factory | Hacked Robot Schematics ------------------ None Fabricated ------------ Nothing Repaired ---------- Imp. Titanium Leg | 38% | -8/Materials | Broken Alien Tech Used ----------------- None Achievements -------------- I Spy Please Form A Line Challenges ------------ None Game ------ Seed PhaseGravjetRail Manual? 0 Play Time 01:27:50 Cumulative 3.4 hours Start 2025.06.26 @ 21:17:46 End 2025.06.26 @ 22:44:50 Sessions 1 Manual Loads 0 Difficulty Rogue Special Mode None Game No. 6 Rogue 6 Adventurer 0 Explorer 0 Win Type - Total 0 Types 0/0/0/0/0/0/0/0/0/0 Lore% 2 Gallery% 12 Achievement% 11 Wizard Run 0 Options --------- Layout 1 ASCII 0 Keyboard 0 Movement Numpad Keybinds 0 Fullscreen 1 Font 24/Smallcaps Map View 50x35 Zoom Use 0% Tactical HUD 0 Map Filters NONE Filters NONE Steam 1 RUN: bf523ed8-b9db-40ff-861a-8cf6f7d8f219